Cogmind - Beta 12 @@@ ROGUE MODE // 2023.10.10 @ 15:55:38 // Winter2019/RPGLIKE Player: ArabianSandBoa Result: Self-destructed Performance ------------- Evolutions (2) 1000 Regions Visited (5) 1000 Robots Destroyed (93) 465 Value Destroyed (2809) 2809 Prototype IDs (13) 260 Alien Tech Used (0) 0 Bonus (589) 589 TOTAL SCORE: 6123 Bonus ------- High Alert Combat Kills 589 Cogmind --------- Core Integrity 600/600 Matter 250/300 Energy 220/220 System Corruption 5% Temperature Cool (0) Movement Flying (111) Ox1 Location -8/Materials Parts ------- > --- POWER (2) -------- Light Nuclear Core Light Nuclear Core > --- PROPULSION (4) --- Flight Unit Flight Unit Flight Unit Flight Unit > --- UTILITY (5) ------ Improved Signal Interpreter Improved Terrain Scanner Transport Network Coupler Layered Light Armor Plating Hacking Suite > --- WEAPON (3) ------- Enhanced Autogun Enhanced Autogun Enhanced Autogun > --- INVENTORY (4) ---- Protomatter-54 Splice Drone Bay (6/6) Advanced Beam Rifle Mini Grenade Launcher Peak State ------------ > --- POWER ------------ Cooled Ion Engine > --- PROPULSION ------- Flight Unit Flight Unit Flight Unit Flight Unit > --- UTILITY ---------- Improved Sensor Array Improved Signal Interpreter Transport Network Coupler Layered Light Armor Plating Graphene Brace > --- WEAPON ----------- Advanced Beam Rifle Advanced Beam Rifle Advanced Beam Rifle > --- INVENTORY -------- Layered Light Armor Plating Splice Drone Bay Gauss Rifle Mini Grenade Launcher [Rating: 38] Favorites ----------- Power Ion Engine Engine Ion Engine Power Core Light Nuclear Core Propulsion Flight Unit Wheel Wheel Flight Unit Flight Unit Utility Sensor Array Device Sensor Array Processor Signal Interpreter Hackware Hacking Suite Protection Layered Light Armor Plating Weapon Advanced Beam Rifle Energy Gun Advanced Beam Rifle Ballistic Gun Assault Rifle Launcher Mini Grenade Launcher Special Weapon Plasma Cutter Special Melee Weapon Datajack Build | -11 -10 -10 -10 -9 -8 ------- Run | Jun Mat Min Exi Min Mat Slots Evolved 10 | 2 1 1 . 1 5 Power 1 | . . . . . 1 Propulsion 3 | . 1 1 . . 1 Utility 4 | 1 . . . 1 2 Weapon 2 | 1 . . . . 1 Parts Attached 67 | 3 12 3 . 1 48 Power 5 | . . . . . 5 Engine 3 | . . . . . 3 Core 2 | . . . . . 2 Reactor . | . . . . . . Propulsion 6 | 1 3 1 . . 1 Treads . | . . . . . . Leg . | . . . . . . Wheel 1 | 1 . . . . . Hover . | . . . . . . Flight 5 | . 3 1 . . 1 Utility 29 | . 6 2 . 1 20 Device 11 | . 2 2 . . 7 Storage . | . . . . . . Processor 10 | . 4 . . 1 5 Hackware 1 | . . . . . 1 Protection 7 | . . . . . 7 Artifact . | . . . . . . Weapon 27 | 2 3 . . . 22 Energy Gun 10 | . . . . . 10 Energy Cannon . | . . . . . . Ballistic Gun 9 | 2 . . . . 7 Ballistic Cannon . | . . . . . . Launcher 6 | . 1 . . . 5 Special Weapon 1 | . 1 . . . . Impact Weapon . | . . . . . . Slashing Weapon . | . . . . . . Piercing Weapon . | . . . . . . Special Melee Weapon 1 | . 1 . . . . Unidentified Prototypes 6 | . . 1 . . 5 Corrupted Parts 1 | . . . . . 1 System Corruption 2 | . . . . . 2 Parts Lost . | . . . . . . Power . | . . . . . . Propulsion . | . . . . . . Utility . | . . . . . . Weapon . | . . . . . . Highest Loss Streak . | . . . . . . To Critical Strikes . | . . . . . . Average Slot Usage (%) 96 | . 93 100 100 100 97 Engine 10 | . 15 12 12 11 6 Core 1 | . . . . . 3 Wheel 1 | . 3 . . . . Flight 27 | . 17 34 37 34 31 Device 11 | . 11 12 12 11 10 Processor 15 | . 13 12 12 19 18 Protection 1 | . . . . . 3 Energy Gun 6 | . . . . . 17 Ballistic Gun 5 | . 13 . . . 1 Launcher 6 | . 7 12 12 11 1 Special Weapon 5 | . 6 12 12 11 1 Special Melee Weapon 1 | . 3 . . . . Naked Turns . | . . . . . . Heaviest Build 21 | 8 9 15 8 8 21 Greatest Support 21 | 15 15 17 17 17 21 Greatest Overweight (x) 1 | 1 . 1 . . 1 Average Overweight (x) . | . . . . . . Largest Inventory Capacity 4 | . 2 4 4 4 4 Average Capacity 2 | . . 3 4 4 4 Most Carried 4 | . 2 4 3 4 4 Average Carried 2 | . . 2 3 3 3 Final Capacity 4 | . 2 4 4 4 4 Final Carried 4 | . 2 3 3 3 4 Class Distribution -------------------- 68% | Hacker-Mutant 18% | Scavenger-Scout 12% | Scavenger-Sprinter Dominant Class ---------------- Hacker-Mutant | -10/Materials Hacker-Mutant | -10/Mines Hacker-Mutant | -10/Exiles Hacker-Mutant | -9/Mines Scavenger-Scout | -8/Materials Resources | -11 -10 -10 -10 -9 -8 ----------- Run | Jun Mat Min Exi Min Mat Matter Collected 1706 | 216 511 244 . 95 640 Remotely 140 | . . . . . 140 Salvage Created 2665 | . 446 138 . . 2081 Parts 167 | . 36 18 . . 113 Haulers Intercepted 7 | . 2 . . . 5 Recyclers Shooed 3 | 1 . . . . 2 Parts Field Recycled . | . . . . . . Retrieved Matter . | . . . . . . Parts Self-Destructed . | . . . . . . Prevented . | . . . . . . Kills | -11 -10 -10 -10 -9 -8 ------- Run | Jun Mat Min Exi Min Mat Combat Hostiles Destroyed 65 | . 15 14 . . 36 Guns 31 | . 8 . . . 23 AOE 32 | . 7 14 . . 11 Classes Destroyed 15 | . 8 . . . 7 Worker 6 | . 2 . . . 4 Builder 3 | . 1 . . . 2 Tunneler 3 | . . . . . 3 Hauler 7 | . 2 . . . 5 Recycler 1 | . . . . . 1 Mechanic 1 | . 1 . . . . Operator 2 | . 1 . . . 1 Watcher 8 | . 3 . . . 5 Swarmer 20 | . 9 9 . . 2 Grunt 35 | . 6 5 . . 24 Brawler 1 | . . . . . 1 Duelist 1 | . . . . . 1 Sentry 5 | . . . . . 5 Hunter 2 | . . . . . 2 Heavy 1 | . . . . . 1 Best Kill Streak 16 | . 4 5 . . 16 Combat Bots Only 5 | . 3 5 . . 5 Max Kills in Single Turn 3 | . 3 3 . . 2 Gunslinging . | . . . . . . Exploded 3 | . 2 3 . . 1 Melee . | . . . . . . Uniques/NPCs Destroyed . | . . . . . . Combat | -11 -10 -10 -10 -9 -8 -------- Run | Jun Mat Min Exi Min Mat Damage Taken 1626 | . 286 119 . 48 1173 Core 1280 | . 234 93 . 36 917 Absorbed by Shields . | . . . . . . Redirected to Core 934 | . 153 85 . 36 660 Regen/Repaired (Parts) 6 | . 6 . . . . Core Remaining (%) 95 | 100 . . . 91 . Volleys Fired 199 | 5 77 23 . 4 90 Largest 3 | 1 2 1 . 1 3 Hottest 183 | 40 40 30 . 30 183 Shots Fired 341 | 5 109 23 . 4 200 Gun 266 | 5 87 . . . 174 Cannon . | . . . . . . Launcher 75 | . 22 23 . 4 26 Special . | . . . . . . Kinetic 96 | . 87 . . . 9 Thermal 170 | 5 . . . . 165 Explosive 49 | . 22 23 . 4 . Electromagnetic 26 | . . . . . 26 Robot Hit Streak 21 | 1 9 4 . . 21 Robot Miss Streak 5 | 1 5 1 . . 4 Penetration Max . | . . . . . . Secondary Targets 5 | . 1 . . . 4 Max Gunslinging Chain 1 | . 1 . . . 1 Shots Hit Robots 203 | 3 58 6 . . 136 Core Hits 140 | . 30 23 . . 87 Critical Kills . | . . . . . . Critical Parts Destroyed . | . . . . . . Critical Strikes 12 | . . . . . 12 Burn 12 | . . . . . 12 Melee Attacks 4 | . 4 . . . . Impact . | . . . . . . Slashing . | . . . . . . Piercing . | . . . . . . Sneak Attacks 1 | . 1 . . . . Combat Hostiles . | . . . . . . Follow-up Attacks . | . . . . . . Damage Inflicted 6215 | 34 1231 988 . . 3962 Guns 3207 | 34 594 . . . 2579 Cannons . | . . . . . . Explosions 3008 | . 637 988 . . 1383 Melee . | . . . . . . Ramming . | . . . . . . Kinetic 696 | . 594 . . . 102 Thermal 2624 | 34 . . . . 2590 Explosive 1625 | . 637 988 . . . Electromagnetic 1270 | . . . . . 1270 Impact . | . . . . . . Slashing . | . . . . . . Piercing . | . . . . . . Highest Corruption 5 | . . . . . 5 Average Corruption 3 | . . . . . 3 Corruption Purged . | . . . . . . Corruption Blocked . | . . . . . . Effects 14 | . . . . . 14 Message Errors 2 | . . . . . 2 Matter Fused 4 | . . . . . 4 Heat Flow Errors 4 | . . . . . 4 Energy Discharges 1 | . . . . . 1 Parts Fused 1 | . . . . . 1 Data Loss (major) 1 | . . . . . 1 Weapon Failures 1 | . . . . . 1 Overload Shots . | . . . . . . Overflow Damage 160 | . 111 24 . . 25 Projectiles . | . . . . . . Explosions 160 | . 111 24 . . 25 Melee . | . . . . . . Knockbacks . | . . . . . . Impact . | . . . . . . Kinetic . | . . . . . . Secondary . | . . . . . . Self-Inflicted Damage 198 | . 69 54 . . 75 Shots 6 | . 3 2 . . 1 Rammed . | . . . . . . Targets Rammed . | . . . . . . Kicked . | . . . . . . Crushed . | . . . . . . Highest Temperature 346 | . . 1 . . 346 Average Temperature 93 | . . 1 . . 94 Received Heat Transfer 513 | . 18 18 . . 477 Effects 5 | . . . . . 5 Energy Bleed 1 | . . . . . 1 Interference 4 | . . . . . 4 Siege Activations . | . . . . . . Robots Corrupted 1 | . . . . . 1 Combat Hostiles 1 | . . . . . 1 Parts Fried 5 | . . . . . 5 Impact Corruptions . | . . . . . . Robots Melted 1 | . . . . . 1 Combat Hostiles 1 | . . . . . 1 Parts Melted 17 | . . . . . 17 Heat Transferred 5466 | 75 . . . . 5391 Parts Sabotaged . | . . . . . . Parts Stolen . | . . . . . . Parts Stripped . | . . . . . . Power Chain Reactions 7 | . . . . . 7 Missiles Intercepted . | . . . . . . Alert | -11 -10 -10 -10 -9 -8 ------- Run | Jun Mat Min Exi Min Mat Peak Influence 996 | . 833 996 . 131 960 Initial 310 | . . 310 . . 50 Average 498 | . 383 708 . 63 644 Maximum Alert Level 3 | . 3 3 . . 3 Low Security (%) 20 | 100 21 . . 100 8 Level 1 22 | . 40 . . . 16 Level 2 21 | . 23 42 . . 19 Level 3 34 | . 14 56 . . 55 Level 4 . | . . . . . . Level 5 . | . . . . . . High Security . | . . . . . . Max Security . | . . . . . . Squads Dispatched 16 | . 5 1 . . 10 Investigation 12 | . 4 1 . . 7 Extermination . | . . . . . . Reinforcement 4 | . 1 . . . 3 Assault . | . . . . . . Garrison . | . . . . . . Intercept . | . . . . . . Searches Triggered . | . . . . . . Construction Impeded 2 | . . . . . 2 Haulers Reinforced . | . . . . . . Active Scanning Responses . | . . . . . . Cargo Convoy Interrupts . | . . . . . . Stealth | -11 -10 -10 -10 -9 -8 --------- Run | Jun Mat Min Exi Min Mat Distress Signals 4 | . 1 . . . 3 Communications Jammed . | . . . . . . Distress Signals . | . . . . . . Times Spotted 90 | . 24 12 . 2 52 Peak Tracking Total 6 | . 3 3 . 2 6 Tactical Retreats 5 | . 1 1 . 1 2 Traps | -11 -10 -10 -10 -9 -8 ------- Run | Jun Mat Min Exi Min Mat Traps Triggered 3 | . 1 . . . 2 Indirectly . | . . . . . . Trap Hack Attempts . | . . . . . . Triggered . | . . . . . . Disarmed . | . . . . . . Reprogrammed . | . . . . . . Reused . | . . . . . . Traps Extracted . | . . . . . . Installed . | . . . . . . Triggered . | . . . . . . Machines | -11 -10 -10 -10 -9 -8 ---------- Run | Jun Mat Min Exi Min Mat Machines Disabled 40 | . 14 13 . 4 9 Max in Single Turn 3 | . 2 3 . 1 3 Machines Repaired 1 | . . . . . 1 Machines Sabotaged . | . . . . . . Overloaded Fab Kills . | . . . . . . Hacking | -11 -10 -10 -10 -9 -8 --------- Run | Jun Mat Min Exi Min Mat Machines Accessed 22 | . 10 2 1 . 9 Terminals 14 | . 7 1 . . 6 Fabricators . | . . . . . . Repair Stations 1 | . 1 . . . . Recycling Units 3 | . 2 . . . 1 Scanalyzers 2 | . . . . . 2 Garrison Access . | . . . . . . Total Hacks 89 | . 35 4 1 . 49 Successful 52 | . 20 3 1 . 28 Failed 35 | . 14 1 . . 20 Catastrophic 5 | . 4 . . . 1 Database Lockouts 2 | . 1 . . . 1 Manual 59 | . 21 3 . . 35 Terminals 74 | . 29 3 . . 42 Fabricators . | . . . . . . Repair Stations 2 | . 2 . . . . Recycling Units 9 | . 4 . . . 5 Scanalyzers 2 | . . . . . 2 Garrison Access . | . . . . . . Terminal Hacks 25 | . 8 1 1 . 15 Record 1 | . . . 1 . . Robot Analysis 4 | . 1 . . . 3 Prototype ID Bank 5 | . 3 . . . 2 Open Door 1 | . . 1 . . . Branch Access Points 1 | . . . . . 1 Emergency Access Points 3 | . 1 . . . 2 Unreport Threat 3 | . . . . . 3 Reprogram Traps 2 | . 1 . . . 1 Maintenance Status 2 | . 1 . . . 1 Surveillance Status 1 | . . . . . 1 Zone Layout 2 | . 1 . . . 1 Fabricator Hacks . | . . . . . . Repair Station Hacks 2 | . 2 . . . . Scan Component 1 | . 1 . . . . Repair 1 | . 1 . . . . Recycling Unit Hacks 6 | . 2 . . . 4 Process 2 | . . . . . 2 Report Inventory 3 | . 2 . . . 1 Retrieve Components 1 | . . . . . 1 Scanalyzer . | . . . . . . Garrison Access Hacks . | . . . . . . Unauthorized Hacks 19 | . 8 2 . . 9 Terminals 14 | . 6 2 . . 6 Botnet 10 | . 5 1 . . 4 Detonate 1 | . 1 . . . . Sabotage 2 | . . . . . 2 Search 1 | . . 1 . . . Fabricators . | . . . . . . Repair Stations . | . . . . . . Recycling Units 3 | . 2 . . . 1 Tunnel 3 | . 2 . . . 1 Scanalyzers 2 | . . . . . 2 Extract 2 | . . . . . 2 Garrison Access . | . . . . . . Data Cores Recovered 1 | . . . . . 1 Used 1 | . . . . . 1 Hacking Detections 13 | . 7 1 . . 5 Full Trace Events 4 | . 3 . . . 1 Feedback Events . | . . . . . . Feedback Blocked . | . . . . . . Robot Schematics Acquired . | . . . . . . Robots Built . | . . . . . . Authchips . | . . . . . . Time . | . . . . . . Total Robot Build Rating . | . . . . . . Part Schematics Acquired 3 | . . . . . 3 Parts Built . | . . . . . . Authchips . | . . . . . . Time . | . . . . . . Total Part Build Rating . | . . . . . . Parts Repaired 1 | . 1 . . . . Time 26 | . 26 . . . . Parts Recycled . | . . . . . . Recycled Matter . | . . . . . . Retrieved Matter . | . . . . . . Retrieved Components . | . . . . . . Parts Scanalyzed . | . . . . . . Part Schematics Acquired . | . . . . . . Parts Damaged . | . . . . . . Bothacking | -11 -10 -10 -10 -9 -8 ------------ Run | Jun Mat Min Exi Min Mat Used RIF Installer . | . . . . . . Robots Hacked 4 | . 4 . . . . Non-combat 3 | . 3 . . . . Combat 1 | . 1 . . . . Robot Hacks Applied 4 | . 4 . . . . parse_system 1 | . 1 . . . . no_distress 2 | . 2 . . . . find_station 1 | . 1 . . . . Relay Couplers Released . | . . . . . . Fabnet Peak Effective % . | . . . . . . Robots Rewired . | . . . . . . Allies Hacked . | . . . . . . Hacks Repelled . | . . . . . . Allies | -11 -10 -10 -10 -9 -8 -------- Run | Jun Mat Min Exi Min Mat Total Allies 3 | . . . . 3 . Largest Group 3 | . . . . 3 3 Highest-Rated Group 40 | . . . . 40 40 Highest-Rated Ally 16 | . . . . 16 16 Total Orders 2 | . . 1 . . 1 ROAM 1 | . . . . . 1 RETURN 1 | . . 1 . . . Ally Attacks 14 | . . . . . 14 Total Damage 189 | . . . . . 189 Kills 3 | . . . . . 3 Allies Corrupted . | . . . . . . Allies Melted . | . . . . . . Intel | -11 -10 -10 -10 -9 -8 ------- Run | Jun Mat Min Exi Min Mat Robot Analysis Total 4 | . 1 . . . 3 Derelict Logs Recovered 3 | . . 1 . 2 . Drone Launches 2 | . . 2 . . . Drone Recoveries 2 | . . 2 . . . Exploration | -11 -10 -10 -10 -9 -8 ------------- Run | Jun Mat Min Exi Min Mat Turns Passed 2352 | 29 843 272 113 183 912 Spaces Moved 3190 | 17 998 515 333 456 871 Core 2 | 1 . . . . 1 Treads . | . . . . . . Legs . | . . . . . . Wheels 89 | 16 73 . . . . Hover . | . . . . . . Flight 3099 | . 925 515 333 456 870 Fastest Speed 31 | 80 37 34 34 34 31 Average Speed 36 | 81 41 34 34 34 31 Slowest Speed 117 | 100 80 117 34 34 100 Overloaded Moves . | . . . . . . Propulsion Burnouts . | . . . . . . Robots Hopped 14 | . 2 4 . 1 7 Cave-ins Triggered . | . . . . . . Exploration Rate (%) 75 | 2 99 96 88 86 80 Regions Visited 5 Branch Regions 3 Pre-discovered Areas 4 | . 2 1 . . 1 Known Exits Taken 4 | . 1 1 1 1 . Unknown Exits Taken 1 | 1 . . . . . Scrap Searched 4 | . . 3 . 1 . Spaces Dug . | . . . . . . Terrain Destroyed 549 | . 257 168 . 29 95 Melee . | . . . . . . Projectile 2 | . . . . . 2 AOE 547 | . 257 168 . 29 93 Terrain Rammed . | . . . . . . Walls Destroyed . | . . . . . . Machines Disabled . | . . . . . . Actions | -11 -10 -10 -10 -9 -8 --------- Run | Jun Mat Min Exi Min Mat Total 4063 | 26 1322 579 332 478 1326 Wait 477 | . 205 32 . 18 222 Move 3157 | 16 993 506 332 453 857 Hop 14 | . 2 4 . 1 7 Pick Up 20 | . 5 3 . 1 11 Fast Attach 40 | 3 12 1 . . 24 Attach 5 | . . 1 . 1 3 Detach 7 | . 3 . . . 4 Swap 22 | . . 1 . . 21 Drop 38 | 2 8 2 . . 26 Fire 199 | 5 77 23 . 4 90 Melee 4 | . 4 . . . . Ram . | . . . . . . Kick . | . . . . . . Crush . | . . . . . . Escape Stasis . | . . . . . . Rewire . | . . . . . . Trap . | . . . . . . Miscellaneous 80 | . 13 6 . . 61 Route ------- -11/Junkyard -10/Materials (discovered 4 exits: *Mat x3 / *Min) -10/Mines (discovered 3 exits: *Mat x2 / *Exi) -10/Exiles -9/Mines (discovered 2 exits: *Mat x2) -8/Materials (discovered 2 exits: *Fac x2) History --------- Turn | Location | Event 2 | -11/Junkyard | Discovered new exit (range 1) 19 | -11/Junkyard | Upgraded with Utility slot (x1) 19 | -11/Junkyard | Upgraded with Weapon slot (x1) 30 | -11/Junkyard | Entered Materials 134 | -10/Materials | Central database locked down 309 | -10/Materials | Discovered new exit (range 16) 315 | -10/Materials | Build established: Hacker-Mutant 324 | -10/Materials | Discovered new exit (range 10) 399 | -10/Materials | Repaired Flight Unit 459 | -10/Materials | Discovered new exit (range 16) 489 | -10/Materials | Reached level 2 496 | -10/Materials | Upgraded with Propulsion slot (x1) 785 | -10/Materials | Discovered new exit (range 9) 785 | -10/Materials | Reached level 3 873 | -10/Materials | Identified exit to Mines 873 | -10/Materials | Entered Mines 879 | -10/Mines | Discovered new exit (range 8) 883 | -10/Mines | Identified exit to Materials 885 | -10/Mines | Deemed a non-threat by the Exiles lab entrance 885 | -10/Mines | Discovered new exit (range 5) 903 | -10/Mines | Found the Drone Emporium 904 | -10/Mines | Found Prototype Device 904 | -10/Mines | Identified Splice Drone Bay 929 | -10/Mines | Learned location of Zion (-6) 935 | -10/Mines | Reached level 4 956 | -10/Mines | Upgraded with Propulsion slot (x1) 985 | -10/Mines | Discovered exit to Materials (range 16) 1000 | -10/Mines | Reached level 5 1145 | -10/Mines | Identified exit to Exiles 1145 | -10/Mines | Entered Exiles 1145 | -10/Exiles | Found Exiles lab abandoned 1255 | -10/Exiles | Discovered new exit (range 10) 1258 | -10/Exiles | Identified exit to Mines 1258 | -10/Exiles | Entered Mines 1274 | -9/Mines | Discovered new exit (range 16) 1283 | -9/Mines | Identified exit to Materials 1301 | -9/Mines | Learned Materials interactive machine intel 1306 | -9/Mines | Upgraded with Utility slot (x1) 1327 | -9/Mines | Assembled infested the area 1350 | -9/Mines | Learned Materials security intel 1406 | -9/Mines | Assisted by bots powering up and referring to "LRC-V3" 1418 | -9/Mines | Discovered exit to Materials (range 6) 1420 | -9/Mines | Reached level 6 1441 | -9/Mines | Entered Materials 1441 | -8/Materials | Accompanied by 3 allies 1443 | -8/Materials | Loaded intel: 19 interactive machine locations 1443 | -8/Materials | Reached level 7 1577 | -8/Materials | Reached level 8 1602 | -8/Materials | Upgraded with Propulsion slot (x1) 1602 | -8/Materials | Upgraded with Utility slot (x1) 1636 | -8/Materials | Upgraded with Weapon slot (x1) 1723 | -8/Materials | Reached level 9 1748 | -8/Materials | Discovered new exit (range 17) 1773 | -8/Materials | Identified exit to Factory 1898 | -8/Materials | Reached level 10 1907 | -8/Materials | Upgraded with Utility slot (x1) 2007 | -8/Materials | Discovered exit to Factory (range 11) 2152 | -8/Materials | Reached level 11 2165 | -8/Materials | Upgraded with Power slot (x1) 2232 | -8/Materials | Build established: Scavenger-Scout 2305 | -8/Materials | Central database locked down 2353 | -8/Materials | Self-destructed Last Messages --------------- No traps found in local area. >>Force(Sabotage) SYSTEM_VULNERABLE[Nuclear Reactor] NETWORK_OVERLOAD_FAIL 02309_ ALERT: Suspicious activity at Terminal M001. Dispatching Investigation squad. 02315_ System corrupted: Energy discharge (-57). 02337_ Y-45 Defender suffers critical hit (Burn). 02337_ Hvy. Assault Rifle melted. 02337_ Heat Sink melted. 02337_ Y-45 Defender destroyed. 02342_ Dropped Lrn. Tractor Beam. 02343_ Acquired Hacking Suite. 02344_ Discarded Target Analyzer. 02346_ Acquired Prototype Ballistic Gun. 02347_ Identified Enh. Autogun. 02348_ Discarded Adv. Beam Rifle. 02349_ Acquired Enh. Autogun. 02350_ Dropped Adv. Beam Rifle. 02351_ Acquired Enh. Autogun. Map ----- +----------------------------------------------------+ | ???????????#?#?# | | ????????#?#???## | | ?????????# ##### #####+################### | | ?????? #?? ?????#???###????# | | ?????? # [ ??#?#??#??#???# | | ????????###+########## # #????#??#???#?# | | ?????????????? ????#?# # #????????#???## | | ???"""???""" ? ?#????# # #??#??????#??## | | ????R"???"G? ????##?## # """" #??#####????#?# | | ???"""?#?""" ????#???# # """" ##????????????# | | ??????????????? ?##?## # """" #?##??#???##??# | | ????????????"?? ?#?#?# ###########?#????###???## | | ??????????????? #????# #???????##?#?##??#??????# | | ???????? ????"" ???#?# ###???#?????############# | | ??????????? ? ?#????# ####??#???###?# + | | ????????????#???#?#??# #???#####?##?## """ # | | ?????????????#?????####+#######?????### "T" # | | ?????????#???##???## ####????#### # | | ????????#?#??##??### """ = ##?######??# """ """ # | | ?????????##??###?#?# """ %##?####????# """ """ # | | ?##???##??##?##?#??# """ =[%#??##??#??# """ """ # | | ?# #????##?#??## =###??##?#??# # | | ## """ ###????#??#?#"" [#?##??#????####+###### | | ###########"T ! #?????? ???+ #???# | | #[!!!//#??#"" [ #?###??? ???# #?#?# | | # # !!!//#??# @ ##?#???????"?# ###?# | | # #############?#??##? ?"??+ a ##??# | | # ## # ##?##?#?###?##?#???? ??? # #???# | | # ## ##?????#???????#?# ?? # #?### | | # ! # #?##????###??###?######## #???# | | # # ## #?#???##?#?#???#?# "T" # #?#?# | | # ## #?????####???#???#! # #???# | | ## #??????????#?#??## """ # #??## | | # ## ![=##???#???#########! """ + ###?# | | ## #### %= ##??????#??# ## """ # #???# | | = =############ ## # #???# | | T + [ # # # ##### | | ####### #### # # | | ## ########?????# #??#= ## !%# | | #######???########## #??# ## =# T | | #?????????# *# #??# ## #% | | #?????????# # #??# ## # | | #?????????# # ####[ #= # | | #?????????# *] # ######+######+### ! | | #?????????# *] *#/ ]=%*[ | | #?????????# *]*/+ * =!|%% = = ] %|=/ | | #?????????# !#* ==== % % %%% =/ | | ##?####????# ### ] %!%=%[ // | | ??? #????# #?# ! ][] *[[%= | | ??? /#????##########?# ]%[= =! | +----------------------------------------------------+ Best States ------------- Heat Dissipation 73 Energy Generation 33 Energy Capacity 280 Matter Stores 300 Matter Capacity 300 Sight Range 17 Robot Scan Range 17 Terrain Scan Range 16 Terrain Scan Density 210 Armor Coverage 300 Evasion (%) 71 Targeting Accuracy 8 Target Analysis 5 Offensive Hacking 20 Defensive Hacking 10 Item Schematics ----------------- Hcp. Battery | -8/Materials | Extracted Reactive Plating | -8/Materials | Extracted VSS Leg | -8/Materials | Extracted Robot Schematics ------------------ None Fabricated ------------ Nothing Alien Tech Used ----------------- None Achievements -------------- None Challenges ------------ None RPGLIKE | -11 -10 -10 -10 -9 -8 --------- Run | Jun Mat Min Exi Min Mat Levels Raised 10 | . 2 2 . 1 5 XP Earned 18597 | 3000 3572 3000 139 800 8086 XP Spent 17900 | 3000 1500 2550 . 1300 9550 Upgrades 41 | 11 5 3 . 2 20 Power Slot 1 | . . . . . 1 Propulsion Slot 3 | . 1 1 . . 1 Utility Slot 4 | 1 . . . 1 2 Weapon Slot 2 | 1 . . . . 1 Heat Dissipation 8 | 1 . . . . 7 Energy Generation 2 | . . . . . 2 Mass Support 1 | 1 . . . . . Inventory Capacity 4 | . 2 2 . . . Sight Range 1 | 1 . . . . . Sensor Range 1 | . 1 . . . . Terrain Scan Density 2 | 1 . . . . 1 Ranged Accuracy 5 | 1 . . . 1 3 Hack Attack % 2 | 2 . . . . . Hack Defense % 2 | 2 . . . . . TH Damage % 2 | . . . . . 2 EX Damage % 1 | . 1 . . . . Protomatter Created 900 | . 112 38 . . 750 Integrity Restored 1598 | . 231 105 . . 1262 Core 1280 | . 207 105 . . 968 Parts 318 | . 24 . . . 294 Protomatter Decayed 178 | . 25 . . . 153 Game ------ Seed TerrabombForcePrototype Manual? 0 Play Time 00:59:14 Cumulative 564.9 hours Start 2023.04.28 @ 15:48:37 End 2023.10.10 @ 15:55:38 Sessions 3 Manual Loads 0 Difficulty Rogue Special Mode Winter2019/RPGLIKE Game No. 581 Rogue 581 Adventurer 0 Explorer 0 Win Type - Total 1 Types 1/0/0/0/0/0/0/0/0 Lore% 71 Gallery% 86 Achievement% 68 Wizard Run 0 Options --------- ASCII 0 Keyboard 0 Movement Mouse Keybinds 0 Fullscreen 1 Font 18/SmallcapsGlow Map View 76x50 Tactical HUD 1 Map Filters NONE Filters NONE Steam 1 RUN: ffe8a50c-aa4d-4828-affa-71aa22be4fc8